fUST/lending_fUST_20241028
["ID","MTS","AMOUNT","RATE_DAILY","PERIOD"]
[340922274,1730100649960,-151.0,0.00024657,7]
[340922275,1730100649969,-151.0,0.00024657,7]
[340922276,1730100649979,-509.23335142,0.00024657,4]
[340922277,1730100649988,-151.0,0.00024657,7]
[340922278,1730100649997,-151.0,0.00024657,7]
[340922279,1730100650007,-500.0,0.00024657,4]
[340922280,1730100650016,-151.0,0.00024657,7]
[340922281,1730100650027,-440.744957,0.00024657,7]
[340922282,1730100650037,-152.77986245,0.00024657,4]
[340922283,1730100650047,-440.744957,0.00024657,7]
[340922284,1730100650057,-151.0,0.00024657,7]
[340922285,1730100650067,-440.744957,0.00024657,7]
[340922286,1730100650078,-440.744957,0.00024657,7]
[340922287,1730100650087,-440.744957,0.00024657,7]
[340922288,1730100650096,-440.744957,0.00024657,7]
[340922289,1730100650107,-440.744957,0.00024657,7]
[340922290,1730100650118,-440.744957,0.00024657,7]
[340922291,1730100650128,-440.744957,0.00024657,7]
[340922292,1730100650138,-440.744957,0.00024657,7]
[340922293,1730100650147,-440.744957,0.00024657,7]
[340922294,1730100650158,-501.31676593,0.00024657,4]
[340922295,1730100650168,-440.744957,0.00024657,7]
[340922296,1730100650179,-440.744957,0.00024657,7]
[340922297,1730100650193,-440.744957,0.00024657,7]
[340922298,1730100650203,-440.744957,0.00024657,7]
[340922299,1730100650213,-440.744957,0.00024657,7]
[340922300,1730100650222,-500.0,0.00024657,4]
[340922301,1730100650232,-440.744957,0.00024657,7]
[340922302,1730100650242,-440.744957,0.00024657,7]
[340922303,1730100650252,-440.744957,0.00024657,7]
[340922304,1730100650262,-500.0,0.00024657,4]
[340922305,1730100650271,-440.744958,0.00024657,7]
[340922306,1730100650282,-151.0,0.00024657,7]
[340922307,1730100650291,-151.0,0.00024657,7]
[340922308,1730100650300,-151.0,0.00024657,7]
[340922309,1730100650309,-151.0,0.00024657,7]
[340922310,1730100650319,-171.22236889,0.00024657,4]
[340922311,1730100650331,-151.0,0.00024657,7]
[340922312,1730100650340,-509.64979367,0.00024657,4]
[340922313,1730100650349,-192.408476,0.00024657,7]
[340922314,1730100650359,-528.61,0.00024657,4]
[340922315,1730100650368,-1205.67,0.00024657,4]
[340922316,1730100650377,-339.78533708,0.00024657,4]
[340922317,1730100708814,218.20364076,0.00036153,30]
[340922318,1730100721012,164.019481,0.00013973,2]
[340922321,1730101063003,4778.04521888,0.0002,2]
[340922322,1730101063039,6549.56478112,0.0002,2]
[340922323,1730101276703,163.693549,0.00013973,2]
[340922324,1730101759174,-166.666666,0.00022157,2]
[340922325,1730101759196,-164.019481,0.00022174,2]
[340922327,1730101809046,165.67036,0.00013973,2]
[340922364,1730101832251,-159.192924,0.00022521,2]
[340922366,1730101832261,-300.0,0.00022733,2]
[340922368,1730101832270,-300.0,0.00022733,2]
[340922370,1730101832280,-24880.0,0.00022734,2]
[340922372,1730101832290,-66.34313424,0.00022759,2]
[340922415,1730101838519,-97.35041476,0.00022759,2]
[340922416,1730101838532,-165.67036,0.00022759,2]
[340922417,1730101838541,-166.666666,0.00022761,2]
[340922418,1730101838552,-159.192924,0.00022814,2]
[340922419,1730101838562,-159.192924,0.00023108,2]
[340922420,1730101838572,-158.108648,0.00023118,2]
[340922421,1730101838583,-166.666666,0.00023365,2]
[340922422,1730101838595,-159.192924,0.00023401,2]
[340922423,1730101838606,-159.192924,0.00023695,2]
[340922424,1730101838616,-166.666666,0.0002397,2]
[340922425,1730101838627,-226.84765945,0.00024181,2]
[340922426,1730101838638,-5101.53611045,0.00024193,2]
[340922427,1730101838665,-2837.99135415,0.00024193,2]
[340922428,1730101838675,-1970.92805553,0.0002435,2]
[340922429,1730101838687,-154.5577427,0.0002445,2]
[340922430,1730101838698,-154.5800421,0.0002445,2]
[340922431,1730101838708,-153.0,0.0002445,2]
[340922432,1730101838718,-302.7503564,0.0002445,2]
[340922433,1730101838927,-153.0,0.0002445,2]
[340922434,1730101838936,-302.7503564,0.0002445,2]
[340922435,1730101838946,-153.0,0.0002445,2]
[340922436,1730101838955,-302.7503564,0.0002445,2]
[340922437,1730101838965,-302.7503564,0.0002445,2]
[340922438,1730101838974,-153.0,0.0002445,2]
[340922439,1730101838986,-302.7503564,0.0002445,2]
[340922440,1730101838996,-153.0,0.0002445,2]
[340922441,1730101839008,-302.7503564,0.0002445,2]
[340922442,1730101839020,-302.7503564,0.0002445,2]
[340922443,1730101839033,-153.0,0.0002445,2]
[340922444,1730101839042,-153.0,0.0002445,2]
[340922445,1730101839051,-153.0,0.0002445,2]
[340922446,1730101839061,-218.78260052,0.00024547,2]
[340922447,1730101839073,-218.78260052,0.00024557,2]
[340922448,1730101839083,-166.666666,0.00024574,2]
[340922449,1730101839094,-7939.5274646,0.00024629,2]
[340922450,1730101839105,-239.5020247,0.00024646,2]
[340922451,1730101839115,-500.0,0.00024646,2]
[340922452,1730101839127,-223.43971052,0.00024646,2]
[340922453,1730101839138,-317.7310992,0.00024646,2]
[340922454,1730101839147,-540.63670067,0.00024646,2]
[340922455,1730101839157,-176.42251498,0.00024646,2]
[340922456,1730101839167,-156.40779736,0.00024646,2]
[340922457,1730101839177,-41829.0328572,0.00024647,3]
[340922458,1730101839187,-42090.16911837,0.00024647,3]
[340922459,1730101839200,-22454.90071113,0.00024647,3]
[340922475,1730101840437,-13627.61811846,0.00024647,3]
[340922476,1730101840449,-487.2150015,0.00024647,3]
[340922503,1730101844543,-120545.02568854,0.00024647,3]
[340922505,1730101844553,-151.0,0.00024657,7]
[340922507,1730101844563,-151.0,0.00024657,7]
[340922509,1730101844574,-151.0,0.00024657,7]
[340922511,1730101844585,-582.60698366,0.00024657,4]
[340922513,1730101844595,-151.0,0.00024657,7]
[340922515,1730101844605,-500.0,0.00024657,4]
[340922517,1730101844614,-500.0,0.00024657,4]
[340922519,1730101844624,-492.942816,0.00024657,4]
[340922521,1730101844634,-500.0,0.00024657,4]
[340922523,1730101844644,-502.69233006,0.00024657,4]
[340922525,1730101844653,-629.46375083,0.00024657,4]
[340922527,1730101844662,-500.0,0.00024657,4]
[340922529,1730101844672,-151.0,0.00024657,7]
[340922531,1730101844683,-151.0,0.00024657,7]
[340922533,1730101844693,-500.0,0.00024657,4]
[340922535,1730101844703,-500.0,0.00024657,4]
[340922537,1730101844712,-500.0,0.00024657,4]
[340922539,1730101844722,-151.0,0.00024657,7]
[340922541,1730101844732,-153.564772,0.00024657,7]
[340922543,1730101844741,-500.0,0.00024657,4]
[340922545,1730101844751,-501.78307727,0.00024657,4]
[340922547,1730101844761,-500.0,0.00024657,4]
[340922549,1730101844771,-502.13817939,0.00024657,4]
[340922551,1730101844780,-500.0,0.00024657,4]
[340922553,1730101844808,-500.0,0.00024657,4]
[340922554,1730101844820,-500.0,0.00024657,4]
[340922555,1730101844830,-500.0,0.00024657,4]
[340922556,1730101844840,-151.489262,0.00024657,7]
[340922557,1730101844852,-510.76676673,0.00024657,4]
[340922558,1730101844863,-500.0,0.00024657,4]
[340922559,1730101844876,-503.76648214,0.00024657,4]
[340922560,1730101844888,-500.0,0.00024657,4]
[340922561,1730101844898,-500.0,0.00024657,4]
[340922562,1730101844908,-500.0,0.00024657,4]
[340922563,1730101844918,-151.0,0.00024657,7]
[340922564,1730101844930,-175.361622,0.00024657,7]
[340922565,1730101844940,-502.33732163,0.00024657,4]
[340922566,1730101844951,-500.0,0.00024657,4]
[340922567,1730101844961,-500.0,0.00024657,4]
[340922568,1730101844971,-500.0,0.00024657,4]
[340922569,1730101844980,-500.0,0.00024657,4]
[340922570,1730101844990,-500.0,0.00024657,4]
[340922571,1730101845001,-500.0,0.00024657,4]
[340922572,1730101845011,-500.0,0.00024657,4]
[340922573,1730101845022,-500.0,0.00024657,4]
[340922574,1730101845032,-500.0,0.00024657,4]
[340922575,1730101845042,-500.0,0.00024657,4]
[340922576,1730101845052,-500.0,0.00024657,4]
[340922577,1730101845061,-500.0,0.00024657,4]
[340922578,1730101845071,-513.83521707,0.00024657,4]
[340922579,1730101845082,-500.0,0.00024657,4]
[340922580,1730101845092,-500.0,0.00024657,4]
[340922581,1730101845103,-505.48985627,0.00024657,4]
[340922582,1730101845113,-151.0,0.00024657,7]
[340922583,1730101845125,-500.0,0.00024657,4]
[340922584,1730101845136,-505.19285611,0.00024657,4]
[340922585,1730101845146,-500.0,0.00024657,4]
[340922586,1730101845156,-500.0,0.00024657,4]
[340922587,1730101845166,-500.0,0.00024657,4]
[340922588,1730101845176,-500.0,0.00024657,4]
[340922589,1730101845186,-500.0,0.00024657,4]
[340922590,1730101845197,-2296.58,0.00024657,4]
[340922591,1730101845207,-500.0,0.00024657,4]
[340922592,1730101845218,-500.0,0.00024657,4]
[340922593,1730101845229,-500.0,0.00024657,4]
[340922594,1730101845239,-316.066018,0.00024657,7]
[340922595,1730101845250,-500.0,0.00024657,4]
[340922596,1730101845260,-316.066018,0.00024657,7]
[340922597,1730101845271,-316.066018,0.00024657,7]
[340922598,1730101845281,-316.066018,0.00024657,7]
[340922599,1730101845291,-316.066018,0.00024657,7]
[340922600,1730101845303,-316.066018,0.00024657,7]
[340922601,1730101845313,-500.0,0.00024657,4]
[340922602,1730101845323,-500.0,0.00024657,4]
[340922603,1730101845334,-500.0,0.00024657,4]
[340922604,1730101845345,-152.849895,0.00024657,7]
[340922605,1730101845357,-500.0,0.00024657,4]
[340922606,1730101845367,-500.0,0.00024657,4]
[340922607,1730101845379,-500.0,0.00024657,4]
[340922608,1730101845389,-534.76171514,0.00024657,4]
[340922609,1730101845399,-500.0,0.00024657,4]
[340922610,1730101845409,-500.0,0.00024657,4]
[340922611,1730101845421,-500.0,0.00024657,4]
[340922612,1730101845432,-500.0,0.00024657,4]
[340922613,1730101845441,-500.0,0.00024657,4]
[340922614,1730101845451,-500.0,0.00024657,4]
[340922615,1730101845461,-571.23020818,0.00024657,4]
[340922616,1730101845472,-500.0,0.00024657,4]
[340922617,1730101845482,-500.0,0.00024657,4]
[340922618,1730101845494,-151.0,0.00024657,7]
[340922619,1730101845505,-151.0,0.00024657,7]
[340922620,1730101845516,-151.0,0.00024657,7]
[340922621,1730101845527,-151.0,0.00024657,7]
[340922622,1730101845536,-500.0,0.00024657,4]
[340922623,1730101845547,-502.115265,0.00024657,4]
[340922624,1730101845557,-500.0,0.00024657,4]
[340922625,1730101845567,-500.0,0.00024657,4]
[340922626,1730101845579,-500.0,0.00024657,4]
[340922627,1730101845589,-500.0,0.00024657,4]
[340922628,1730101845599,-500.0,0.00024657,4]
[340922629,1730101845609,-500.0,0.00024657,4]
[340922630,1730101845619,-500.0,0.00024657,4]
[340922631,1730101845628,-500.0,0.00024657,4]
[340922632,1730101845638,-151.0,0.00024657,7]
[340922633,1730101845648,-153.090233,0.00024657,7]
[340922634,1730101845657,-586.42292468,0.00024657,4]
[340922635,1730101845667,-500.0,0.00024657,4]
[340922636,1730101845678,-500.0,0.00024657,4]
[340922637,1730101845688,-356.79667303,0.00024657,4]
[340922638,1730101845698,-500.0,0.00024657,4]
[340922639,1730101845708,-500.0,0.00024657,4]
[340922640,1730101845719,-500.0,0.00024657,4]
[340922641,1730101845729,-169.23162797,0.00024657,4]
[340922642,1730101845739,-151.0,0.00024657,7]
[340922643,1730101845748,-151.0,0.00024657,7]
[340922644,1730101845758,-300.089091,0.00024657,7]
[340922645,1730101845767,-151.0,0.00024657,7]
[340922646,1730101845776,-151.0,0.00024657,7]
[340922647,1730101845787,-151.0,0.00024657,7]
[340922648,1730101845796,-410.3372395,0.00024657,4]
[340922649,1730101845806,-686.610559,0.00024657,7]
[340922650,1730101845815,-686.610559,0.00024657,7]
[340922651,1730101845827,-686.610559,0.00024657,7]
[340922652,1730101845837,-686.610559,0.00024657,7]
[340922653,1730101845847,-151.0,0.00024657,7]
[340922654,1730101845858,-153.460947,0.00024657,7]
[340922655,1730101845869,-686.610559,0.00024657,7]
[340922656,1730101845879,-686.610559,0.00024657,7]
[340922657,1730101845891,-686.610559,0.00024657,7]
[340922658,1730101845901,-686.610559,0.00024657,7]
[340922659,1730101845911,-500.0,0.00024657,4]
[340922660,1730101845921,-500.96062539,0.00024657,4]
[340922661,1730101845931,-204.223747,0.00024657,7]
[340922662,1730101845944,-204.223747,0.00024657,7]
[340922663,1730101845955,-204.223747,0.00024657,7]
[340922664,1730101845967,-204.223747,0.00024657,7]
[340922665,1730101845977,-204.223747,0.00024657,7]
[340922666,1730101845989,-204.223747,0.00024657,7]
[340922667,1730101845999,-508.68063129,0.00024657,4]
[340922668,1730101846009,-500.0,0.00024657,4]
[340922669,1730101846022,-500.0,0.00024657,4]
[340922670,1730101846033,-500.0,0.00024657,4]
[340922671,1730101846043,-500.0,0.00024657,4]
[340922672,1730101846053,-500.0,0.00024657,4]
[340922673,1730101846063,-500.0,0.00024657,4]
[340922675,1730101846074,-402.69528356,0.00024657,4]
[340922676,1730101846085,-503.12452468,0.00024657,4]
[340922677,1730101846097,-500.0,0.00024657,4]
[340922678,1730101846107,-561.22558035,0.00024657,4]
[340922680,1730101846119,-500.0,0.00024657,4]
[340922681,1730101846129,-1449.85,0.00024657,4]
[340922682,1730101846140,-500.0,0.00024657,4]
[340922683,1730101846149,-169.462858,0.00024657,7]
[340922684,1730101846161,-506.58,0.00024657,4]
[340922685,1730101846171,-503.72661181,0.00024657,4]
[340922686,1730101846180,-510.62617678,0.00024657,4]
[340922687,1730101846190,-216.89341012,0.00024657,4]
[340922688,1730101846201,-554.31,0.00024657,4]
[340922689,1730101846211,-654.17,0.00024657,4]
[340922690,1730101846222,-645.55931953,0.00024657,4]
[340922691,1730101846231,-500.0,0.00024657,4]
[340922692,1730101846241,-500.0,0.00024657,4]
[340922693,1730101846251,-505.6642154,0.00024657,4]
[340922695,1730101846260,-500.0,0.00024657,4]
[340922696,1730101846271,-500.0,0.00024657,4]
[340922697,1730101846281,-503.10564184,0.00024657,4]
[340922698,1730101846291,-151.0,0.00024657,7]
[340922699,1730101846300,-500.0,0.00024657,4]
[340922700,1730101846310,-500.0,0.00024657,4]
[340922701,1730101846320,-151.0,0.00024657,7]
[340922702,1730101846330,-500.0,0.00024657,4]
[340922703,1730101846340,-151.0,0.00024657,7]
[340922704,1730101846351,-151.0,0.00024657,7]
[340922705,1730101846363,-151.0,0.00024657,7]
[340922706,1730101846373,-151.0,0.00024657,7]
[340922707,1730101846383,-151.0,0.00024657,7]
[340922708,1730101846392,-151.0,0.00024657,7]
[340922709,1730101846401,-503.16775006,0.00024657,4]
[340922710,1730101846411,-500.0,0.00024657,4]
[340922711,1730101846421,-500.0,0.00024657,4]
[340922712,1730101846431,-500.0,0.00024657,4]
[340922713,1730101846441,-500.0,0.00024657,4]
[340922714,1730101846452,-151.0,0.00024657,7]
[340922715,1730101846463,-151.0,0.00024657,7]
[340922716,1730101846474,-151.0,0.00024657,7]
[340922717,1730101846484,-151.0,0.00024657,7]
[340922718,1730101846494,-500.0,0.00024657,4]
[340922719,1730101846505,-501.00754387,0.00024657,4]
[340922720,1730101846517,-409.38070989,0.00024657,4]
[340922721,1730101846528,-500.0,0.00024657,4]
[340922722,1730101846539,-533.34123585,0.00024657,4]
[340922723,1730101846551,-503.81750388,0.00024657,4]
[340922724,1730101846560,-500.0,0.00024657,4]
[340922725,1730101846571,-501.74561944,0.00024657,4]
[340922726,1730101846581,-151.0,0.00024657,7]
[340922727,1730101846591,-151.0,0.00024657,7]
[340922728,1730101846601,-151.0,0.00024657,7]
[340922729,1730101846611,-151.0,0.00024657,7]
[340922730,1730101846622,-501.93,0.00024657,4]
[340922731,1730101846631,-151.0,0.00024657,7]
[340922732,1730101846641,-151.0,0.00024657,7]
[340922733,1730101846651,-151.0,0.00024657,7]
[340922734,1730101846663,-151.0,0.00024657,7]
[340922735,1730101846673,-151.0,0.00024657,7]
[340922736,1730101846683,-151.0,0.00024657,7]
[340922737,1730101846694,-151.0,0.00024657,7]
[340922738,1730101846704,-151.0,0.00024657,7]
[340922739,1730101846714,-502.95698612,0.00024657,4]
[340922740,1730101846724,-506.37689561,0.00024657,4]
[340922741,1730101846734,-151.0,0.00024657,7]
[340922742,1730101846743,-505.88502332,0.00024657,4]
[340922743,1730101846752,-666.29,0.00024657,4]
[340922744,1730101846762,-500.0,0.00024657,4]
[340922745,1730101846771,-501.48899604,0.00024657,4]
[340922746,1730101846780,-500.0,0.00024657,4]
[340922747,1730101846789,-151.0,0.00024657,7]
[340922748,1730101846798,-151.0,0.00024657,7]
[340922749,1730101846807,-500.0,0.00024657,4]
[340922750,1730101846817,-500.0,0.00024657,4]
[340922751,1730101846827,-151.0,0.00024657,7]
[340922752,1730101846837,-151.0,0.00024657,7]
[340922753,1730101846848,-500.0,0.00024657,4]
[340922754,1730101846860,-151.0,0.00024657,7]
[340922755,1730101846872,-500.0,0.00024657,4]
[340922756,1730101846884,-151.0,0.00024657,7]
[340922757,1730101846894,-151.0,0.00024657,7]
[340922758,1730101846904,-151.0,0.00024657,7]
[340922759,1730101846915,-500.0,0.00024657,4]
[340922760,1730101846925,-500.0,0.00024657,4]
[340922761,1730101846935,-500.0,0.00024657,4]
[340922762,1730101846947,-570.49891844,0.00024657,4]
[340922763,1730101846957,-568.24,0.00024657,4]
[340922764,1730101846967,-500.0,0.00024657,4]
[340922765,1730101846978,-500.0,0.00024657,4]
[340922766,1730101846988,-500.0,0.00024657,4]
[340922767,1730101847001,-500.0,0.00024657,4]
[340922768,1730101847011,-151.0,0.00024657,7]
[340922769,1730101847021,-151.0,0.00024657,7]
[340922770,1730101847031,-797.18,0.00024657,4]
[340922771,1730101847041,-151.0,0.00024657,7]
[340922772,1730101847051,-500.0,0.00024657,4]
[340922773,1730101847062,-151.0,0.00024657,7]
[340922774,1730101847074,-500.0,0.00024657,4]
[340922775,1730101847084,-500.0,0.00024657,4]
[340922776,1730101847093,-151.0,0.00024657,7]
[340922777,1730101847103,-151.0,0.00024657,7]
[340922778,1730101847113,-151.0,0.00024657,7]
[340922779,1730101847122,-151.0,0.00024657,7]
[340922780,1730101847132,-500.0,0.00024657,4]
[340922781,1730101847142,-500.0,0.00024657,4]
[340922782,1730101847152,-285.51354478,0.00024657,4]
[340922783,1730101847164,-579.40768274,0.00024657,4]
[340922784,1730101847173,-151.0,0.00024657,7]
[340922785,1730101847183,-153.663046,0.00024657,7]
[340922786,1730101847192,-151.0,0.00024657,7]
[340922787,1730101847202,-151.0,0.00024657,7]
[340922788,1730101847211,-151.0,0.00024657,7]
[340922789,1730101847221,-268.72913,0.00024657,7]
[340922790,1730101847230,-500.0,0.00024657,4]
[340922791,1730101847242,-515.02062423,0.00024657,4]
[340922792,1730101847252,-230.9268,0.00024657,7]
[340922793,1730101847262,-500.0,0.00024657,4]
[340922794,1730101847275,-500.0,0.00024657,4]
[340922795,1730101847287,-500.0,0.00024657,4]
[340922796,1730101847298,-500.0,0.00024657,4]
[340922797,1730101847308,-500.0,0.00024657,4]
[340922798,1730101847319,-500.0,0.00024657,4]
[340922799,1730101847328,-329.31993126,0.00024657,4]
[340922800,1730101847337,-1146.15,0.00024657,4]
[340922801,1730101847347,-500.0,0.00024657,4]
[340922802,1730101847356,-500.0,0.00024657,4]
[340922803,1730101847365,-500.0,0.00024657,4]
[340922804,1730101847374,-500.0,0.00024657,4]
[340922805,1730101847383,-603.14,0.00024657,4]
[340922806,1730101847392,-500.0,0.00024657,4]
[340922807,1730101847401,-649.14,0.00024657,4]
[340922808,1730101847410,-154.450256,0.00024657,7]
[340922809,1730101847420,-500.0,0.00024657,4]
[340922810,1730101847429,-510.44129932,0.00024657,4]
[340922811,1730101847438,-509.65043724,0.00024657,4]
[340922812,1730101847447,-500.0,0.00024657,4]
[340922813,1730101847456,-500.0,0.00024657,4]
[340922814,1730101847466,-500.0,0.00024657,4]
[340922815,1730101847475,-500.0,0.00024657,4]
[340922816,1730101847483,-500.0,0.00024657,4]
[340922817,1730101847492,-504.31760058,0.00024657,4]
[340922818,1730101847502,-510.96131442,0.00024657,4]
[340922819,1730101847511,-500.0,0.00024657,4]
[340922820,1730101847520,-500.0,0.00024657,4]
[340922821,1730101847666,-500.0,0.00024657,4]
[340922822,1730101847677,-501.68664463,0.00024657,4]
[340922823,1730101847688,-500.0,0.00024657,4]
[340922824,1730101847699,-500.0,0.00024657,4]
[340922825,1730101847709,-500.0,0.00024657,4]
[340922826,1730101847720,-559.32,0.00024657,4]
[340922827,1730101847732,-500.0,0.00024657,4]
[340922828,1730101847743,-500.0,0.00024657,4]
[340922829,1730101847753,-500.0,0.00024657,4]
[340922830,1730101847763,-500.0,0.00024657,4]
[340922831,1730101847773,-500.0,0.00024657,4]
[340922832,1730101847781,-500.0,0.00024657,4]
[340922833,1730101847791,-500.0,0.00024657,4]
[340922834,1730101847800,-500.0,0.00024657,4]
[340922835,1730101847810,-19221.79,0.00024657,2]
[340922836,1730101847820,-19221.79,0.00024657,2]
[340922837,1730101847831,-19221.79,0.00024657,2]
[340922838,1730101847844,-19221.79,0.00024657,2]
[340922839,1730101847855,-19221.79,0.00024657,2]
[340922840,1730101847865,-19221.79,0.00024657,2]
[340922841,1730101847875,-19221.79,0.00024657,2]
[340922842,1730101847886,-19221.79,0.00024657,2]
[340922843,1730101847896,-19221.79,0.00024657,2]
[340922844,1730101847907,-19221.79,0.00024657,2]
[340922845,1730101847917,-19221.79,0.00024657,2]
[340922846,1730101847927,-19221.79,0.00024657,2]
[340922847,1730101847938,-19221.79,0.00024657,2]
[340922848,1730101847951,-12361.99430994,0.00024657,2]
[340922849,1730101848004,-6859.79569006,0.00024657,2]
[340922850,1730101848013,-19221.79,0.00024657,2]
[340922851,1730101848023,-18650.43230722,0.00024657,2]
[340922852,1730101944621,249.96092601,0.0002,2]
[340922853,1730102297132,165.394182,0.00013973,2]
[340922855,1730102818319,165.67036,0.00013973,2]
[340922856,1730102961188,-165.394182,0.00021209,2]
[340922913,1730103038637,-166.666666,0.00022759,2]
[340922914,1730103038647,-3870.9675941,0.00023106,2]
[340922915,1730103038656,-159.375,0.00023329,2]
[340922916,1730103038666,-166.666666,0.00023379,2]
[340922917,1730103038677,-160.609013,0.00023383,2]
[340922918,1730103038698,-159.375,0.00023502,2]
[340922919,1730103038708,-159.375,0.00023676,2]
[340922920,1730103038719,-159.375,0.0002385,2]
[340922921,1730103038729,-166.666666,0.00024,2]
[340922922,1730103038739,-159.375,0.00024023,2]
[340922923,1730103038751,-159.375,0.00024197,2]
[340922924,1730103038760,-165.67036,0.00024224,2]
[340922925,1730103038770,-159.375,0.00024371,2]
[340922926,1730103038780,-159.375,0.00024544,2]
[340922927,1730103038789,-250.0,0.000246,3]
[340922928,1730103038799,-166.666666,0.0002462,2]
[340922929,1730103038809,-300.0,0.00024646,2]
[340922930,1730103038819,-300.0,0.00024646,2]
[340922931,1730103038829,-11486.82892525,0.00024647,3]
[340922932,1730103038844,-8433.66393855,0.00024647,3]
[340922933,1730103038853,-199.02963855,0.00024656,2]
[340922934,1730103038863,-151.23177297,0.00024657,2]
[340922935,1730103038873,-500.0,0.00024657,4]
[340922936,1730103038882,-500.0,0.00024657,4]
[340922937,1730103038893,-545.15062443,0.00024657,4]
[340922938,1730103038902,-500.0,0.00024657,4]
[340922939,1730103038912,-500.0,0.00024657,4]
[340922940,1730103038922,-500.0,0.00024657,4]
[340922941,1730103038932,-500.0,0.00024657,4]
[340922942,1730103038941,-500.0,0.00024657,4]
[340922943,1730103038951,-181.98582018,0.00024657,4]
[340922944,1730103038960,-500.0,0.00024657,4]
[340922945,1730103038969,-500.0,0.00024657,4]
[340922946,1730103038978,-500.0,0.00024657,4]
[340922947,1730103038988,-500.0,0.00024657,4]
[340922948,1730103038997,-500.0,0.00024657,2]
[340922949,1730103039007,-500.0,0.00024657,4]
[340922950,1730103039018,-612.08910556,0.00024657,4]
[340922951,1730103039027,-456.79511155,0.00024657,4]
[340922952,1730103039038,-500.0,0.00024657,4]
[340922953,1730103039049,-500.0,0.00024657,4]
[340922954,1730103039058,-500.0,0.00024657,4]
[340922955,1730103039068,-500.0,0.00024657,4]
[340922956,1730103039077,-500.0,0.00024657,4]
[340922957,1730103039087,-500.0,0.00024657,4]
[340922958,1730103039096,-500.0,0.00024657,4]
[340922959,1730103039105,-500.0,0.00024657,4]
[340922960,1730103039115,-500.0,0.00024657,4]
[340922961,1730103039125,-500.0,0.00024657,4]
[340922962,1730103039137,-500.0,0.00024657,4]
[340922963,1730103039147,-500.0,0.00024657,4]
[340922964,1730103039157,-2200.89,0.00024657,4]
[340922965,1730103039166,-475.44971954,0.00024657,4]
[340922966,1730103039176,-508.60629159,0.00024657,4]
[340922967,1730103039185,-500.0,0.00024657,4]
[340922968,1730103039194,-500.0,0.00024657,4]
[340922969,1730103039204,-500.0,0.00024657,4]
[340922970,1730103039213,-509.06498827,0.00024657,4]
[340922971,1730103039223,-197.24919721,0.00024657,4]
[340922972,1730103039232,-205.00029487,0.00024657,4]
[340922973,1730103039241,-500.0,0.00024657,4]
[340922974,1730103039250,-500.0,0.00024657,4]
[340922975,1730103039260,-500.0,0.00024657,4]
[340922976,1730103039269,-383.72303695,0.00024657,4]
[340922977,1730103039279,-395.28572211,0.00024657,4]
[340922978,1730103039289,-500.0,0.00024657,4]
[340922979,1730103039300,-500.0,0.00024657,4]
[340922980,1730103039315,-583.21100713,0.00024657,4]
[340922981,1730103039325,-227.5726382,0.00024657,4]
[340922982,1730103039336,-500.0,0.00024657,4]
[340922983,1730103039346,-500.0,0.00024657,4]
[340922984,1730103039355,-500.0,0.00024657,4]